[Event "POL-chT 2 Liga 2019"]
[Site "Poronin"]
[Date "2019.09.13"]
[Round "7.14"]
[White "Dudzinski, Piotr"]
[Black "Czerw, Dawid"]
[Result "1/2-1/2"]
[ECO "B22"]
[WhiteElo "2355"]
[BlackElo "2269"]
[Annotator "NA"]
[PlyCount "36"]
[EventDate "2019.09.07"]
[EventType "team-tourn"]
[EventCountry "POL"]
[SourceTitle "playchess.com"]
[Source "ChessBase"]
[SourceQuality "1"]
[TimeControl "40/5400+30:1800+30"]

1. e4 {[%emt 0:00:00]} c5 {[%emt 0:00:00]} 2. c3 {[%emt 0:00:00]} d5 {[%emt 0:00:00]} 3. exd5 {[%emt 0:00:00]} Qxd5 {[%emt 0:00:00]} 4. d4 {[%emt 0:00:00]} Nf6 {[%emt 0:00:00]} 5. Nf3 {[%emt 0:00:00]} e6 {[%emt 0:00:00]} 6. Be2 {[%emt 0:00:53]} Be7 {[%emt 0:01:52]} 7. O-O {[%emt 0:00:07]} O-O {[%emt 0:00:04]} 8. Be3 {[%emt 0:00:33]} cxd4 {[%emt 0:01:07]} 9. cxd4 {[%emt 0:00:06]} Nc6 {[%emt 0:00:23]} 10. Nc3 {[%emt 0:00:07]} Qd6 {[%emt 0:01:00]} 11. Rc1 {[%emt 0:03:39]} Nb4 {[%emt 0:16:50]} 12. Nb5 {[%emt 0:13:59]} Qd8 {[%emt 0:08:36]} 13. Nc7 {[%emt 0:01:18]} Rb8 {[%emt 0:02:24]} 14. d5 {[%emt 0:14:40]} Nxa2 {[%emt 0:04:44]} 15. Bxa7 {[%emt 0:01:45]} Nxc1 {[%emt 0:01:38]} 16. Qxc1 {[%emt 0:00:13]} Bd7 {[%emt 0:02:00]} 17. Bxb8 {[%emt 0:00:18]} Qxb8 {[%emt 0:02:05]} 18. dxe6 {[%emt 0:00:32]} Rc8 {[%emt 0:17:21]} 1/2-1/2

[Event "POL-chT 2 Liga 2019"]
[Site "Poronin"]
[Date "2019.09.13"]
[Round "7.15"]
[White "Niedbala, Bartlomiej"]
[Black "Janaszak, Dawid"]
[Result "1/2-1/2"]
[ECO "A45"]
[WhiteElo "2145"]
[BlackElo "2351"]
[Annotator "NA"]
[PlyCount "89"]
[EventDate "2019.09.07"]
[EventType "team-tourn"]
[EventCountry "POL"]
[SourceTitle "playchess.com"]
[Source "ChessBase"]
[SourceQuality "1"]
[TimeControl "40/5400+30:1800+30"]

1. d4 {[%emt 0:00:00]} Nf6 {[%emt 0:00:00]} 2. Bf4 {[%emt 0:00:00]} g6 {[%emt 0:00:31]} 3. e3 {[%emt 0:00:00]} Bg7 {[%emt 0:00:15]} 4. Nf3 {[%emt 0:00:01]} O-O {[%emt 0:01:11]} 5. h3 {[%emt 0:01:56]} b6 {[%emt 0:02:04]} 6. Be2 {[%emt 0:03:44]} Bb7 {[%emt 0:00:12]} 7. O-O {[%emt 0:00:09]} d6 {[%emt 0:01:06]} 8. c4 {[%emt 0:05:33]} Nbd7 {[%emt 0:02:27]} 9. Nc3 {[%emt 0:00:33]} Ne4 {[%emt 0:04:15]} 10. Nxe4 {[%emt 0:03:40]} Bxe4 {[%emt 0:00:02]} 11. Bh2 {[%emt 0:03:46]} c5 {[%emt 0:08:05]} 12. Nd2 {[%emt 0:10:38]} Bb7 {[%emt 0:00:25]} 13. Bf3 {[%emt 0:00:17]} Qc8 {[%emt 0:08:56]} 14. Bxb7 {[%emt 0:07:45]} Qxb7 {[%emt 0:00:03]} 15. Nf3 {[%emt 0:00:29]} Rfc8 {[%emt 0:07:27]} 16. Qe2 {[%emt 0:00:48]} Rab8 {[%emt 0:09:00]} 17. Rac1 {[%emt 0:01:47]} a6 {[%emt 0:07:54]} 18. b3 {[%emt 0:12:59]} b5 {[%emt 0:05:34]} 19. Rfd1 {[%emt 0:05:56]} bxc4 {[%emt 0:02:54]} 20. Rxc4 {[%emt 0:02:35]} cxd4 {[%emt 0:00:38]} 21. Nxd4 {[%emt 0:05:27]} Rxc4 {[%emt 0:01:36]} 22. Qxc4 {[%emt 0:00:17]} Rc8 {[%emt 0:00:16]} 23. Qe2 {[%emt 0:00:22]} Nf6 {[%emt 0:02:12]} 24. Qf3 {[%emt 0:04:03]} Ne4 {[%emt 0:01:45]} 25. Ne2 {[%emt 0:03:14]} d5 {[%emt 0:06:15]} 26. Rc1 {[%emt 0:01:07]} Bb2 {[%emt 0:02:17]} 27. Rxc8+ {[%emt 0:04:04]} Qxc8 {[%emt 0:00:02]} 28. g4 {[%emt 0:01:18]} Qc2 {[%emt 0:01:59]} 29. Ng3 {[%emt 0:01:33]} Be5 {[%emt 0:05:11]} 30. Nxe4 {[%emt 0:02:01]} dxe4 {[%emt 0:02:35]} 31. Qh1 {[%emt 0:00:15]} Bf6 {[%emt 0:07:20]} 32. Bg3 {[%emt 0:02:34]} Kg7 {[%emt 0:01:27]} 33. a4 {[%emt 0:00:52]} h5 {[%emt 0:05:06]} 34. gxh5 {[%emt 0:02:25]} gxh5 {[%emt 0:00:02]} 35. Qg2 {[%emt 0:03:02]} Kh8 {[%emt 0:02:06]} 36. h4 {[%emt 0:02:17]} a5 {[%emt 0:01:44]} 37. Kh2 {[%emt 0:01:57]} e6 {[%emt 0:01:11]} 38. Qh1 {[%emt 0:04:28]} Bg7 {[%emt 0:00:46]} 39. Qf1 {[%emt 0:02:23]} Qxb3 {[%emt 0:00:46]} 40. Qb5 {[%emt 0:00:00]} Qd5 {[%emt 0:00:00]} 41. Qe8+ {[%emt 0:08:34]} Kh7 {[%emt 0:01:51]} 42. Qxf7 {[%emt 0:00:10]} Qf5 {[%emt 0:01:57]} 43. Qe8 {[%emt 0:08:18]} Be5 {[%emt 0:03:31]} 44. Qe7+ {[%emt 0:04:06]} Kg6 {[%emt 0:01:03]} 45. Kg1 {[%emt 0:03:09]} 1/2-1/2

[Event "POL-chT 2 Liga 2019"]
[Site "Poronin"]
[Date "2019.09.13"]
[Round "7.16"]
[White "Malovanyi, Yulian"]
[Black "Galuszka, Tomasz"]
[Result "1/2-1/2"]
[ECO "B12"]
[WhiteElo "2320"]
[BlackElo "2222"]
[Annotator "NA"]
[PlyCount "54"]
[EventDate "2019.09.07"]
[EventType "team-tourn"]
[EventCountry "POL"]
[SourceTitle "playchess.com"]
[Source "ChessBase"]
[SourceQuality "1"]
[TimeControl "40/5400+30:1800+30"]

1. e4 {[%emt 0:00:00]} c6 {[%emt 0:00:00]} 2. d4 {[%emt 0:00:00]} d5 {[%emt 0:00:00]} 3. e5 {[%emt 0:00:00]} Bf5 {[%emt 0:00:08]} 4. Nd2 {[%emt 0:00:00]} e6 {[%emt 0:00:30]} 5. Nb3 {[%emt 0:00:16]} Nd7 {[%emt 0:01:29]} 6. Nf3 {[%emt 0:00:09]} Bg6 {[%emt 0:01:16]} 7. Be2 {[%emt 0:01:04]} Nh6 {[%emt 0:01:15]} 8. O-O {[%emt 0:03:18]} Nf5 {[%emt 0:00:58]} 9. a4 {[%emt 0:05:51]} h5 {[%emt 0:02:49]} 10. a5 {[%emt 0:04:56]} a6 {[%emt 0:01:01]} 11. c4 {[%emt 0:01:20]} dxc4 {[%emt 0:03:58]} 12. Nbd2 {[%emt 0:01:47]} h4 {[%emt 0:10:15]} 13. Nxc4 {[%emt 0:02:36]} Be7 {[%emt 0:01:29]} 14. Be3 {[%emt 0:10:07]} Kf8 {[%emt 0:05:00]} 15. Nfd2 {[%emt 0:13:39]} Kg8 {[%emt 0:02:37]} 16. Bf3 {[%emt 0:04:41]} Nf8 {[%emt 0:12:58]} 17. Ne4 {[%emt 0:09:25]} Nh7 {[%emt 0:05:54]} 18. Nc5 {[%emt 0:08:07]} Rb8 {[%emt 0:05:18]} 19. Qb3 {[%emt 0:05:54]} Ng5 {[%emt 0:07:39]} 20. Bxg5 {[%emt 0:04:59]} Bxg5 {[%emt 0:00:52]} 21. Rfd1 {[%emt 0:02:54]} Be7 {[%emt 0:14:11]} 22. Qc3 {[%emt 0:02:05]} Bh5 {[%emt 0:02:36]} 23. Bxh5 {[%emt 0:02:48]} Rxh5 {[%emt 0:00:09]} 24. Nb6 {[%emt 0:00:09]} Qc7 {[%emt 0:01:18]} 25. Rac1 {[%emt 0:02:51]} Rd8 {[%emt 0:04:17]} 26. Ne4 {[%emt 0:02:02]} Qb8 {[%emt 0:01:35]} 27. Nc5 {[%emt 0:03:22]} Qc7 {[%emt 0:00:51]} 1/2-1/2

[Event "POL-chT 2 Liga 2019"]
[Site "Poronin"]
[Date "2019.09.13"]
[Round "7.17"]
[White "Koloczek, Maciej"]
[Black "Chmielarz, Maciej"]
[Result "1-0"]
[ECO "B12"]
[WhiteElo "1932"]
[BlackElo "2008"]
[Annotator "NA"]
[PlyCount "55"]
[EventDate "2019.09.07"]
[EventType "team-tourn"]
[EventCountry "POL"]
[SourceTitle "playchess.com"]
[Source "ChessBase"]
[SourceQuality "1"]
[TimeControl "40/5400+30:1800+30"]

1. e4 {[%emt 0:00:00]} c6 {[%emt 0:00:00]} 2. d4 {[%emt 0:00:00]} d5 {[%emt 0:00:00]} 3. e5 {[%emt 0:00:02]} c5 {[%emt 0:00:00]} 4. dxc5 {[%emt 0:00:13]} e6 {[%emt 0:00:26]} 5. a3 {[%emt 0:00:26]} Bxc5 {[%emt 0:01:20]} 6. b4 {[%emt 0:01:00]} Bb6 {[%emt 0:01:00]} 7. Nf3 {[%emt 0:00:27]} Ne7 {[%emt 0:02:19]} 8. Bd3 {[%emt 0:00:32]} Ng6 {[%emt 0:02:48]} 9. O-O {[%emt 0:00:52]} Nd7 {[%emt 0:01:56]} 10. Bb2 {[%emt 0:03:00]} Nf4 {[%emt 0:04:11]} 11. c4 {[%emt 0:02:22]} g5 {[%emt 0:15:14]} 12. cxd5 {[%emt 0:24:32]} Nxd5 {[%emt 0:01:34]} 13. Nc3 {[%emt 0:12:10]} Nxc3 {[%emt 0:09:30]} 14. Bxc3 {[%emt 0:00:11]} Bc7 {[%emt 0:20:11]} 15. Qe2 {[%emt 0:06:09]} g4 {[%emt 0:10:32]} 16. Nd2 {[%emt 0:04:00]} Nb6 {[%emt 0:01:47]} 17. Bb5+ {[%emt 0:03:56]} Bd7 {[%emt 0:00:07]} 18. Ne4 {[%emt 0:00:50]} Bxb5 {[%emt 0:05:03]} 19. Qxb5+ {[%emt 0:00:34]} Kf8 {[%emt 0:00:43]} 20. Rfd1 {[%emt 0:01:07]} Qe7 {[%emt 0:03:07]} 21. Bd4 {[%emt 0:02:26]} a6 {[%emt 0:07:17]} 22. Qe2 {[%emt 0:01:12]} Na4 {[%emt 0:02:28]} 23. Rac1 {[%emt 0:01:57]} Bb6 {[%emt 0:04:07]} 24. Ba1 {[%emt 0:00:06]} Rd8 {[%emt 0:04:26]} 25. Nf6 {[%emt 0:00:56]} h5 {[%emt 0:01:14]} 26. Qc2 {[%emt 0:00:13]} Rxd1+ {[%emt 0:01:04]} 27. Rxd1 {[%emt 0:00:28]} Qc7 {[%emt 0:00:26]} 28. Qxa4 {[%emt 0:00:41]} 1-0

[Event "POL-chT 2 Liga 2019"]
[Site "Poronin"]
[Date "2019.09.13"]
[Round "7.18"]
[White "Czerwinska, Milena"]
[Black "Adamczyk, Zuzanna"]
[Result "1-0"]
[ECO "B40"]
[WhiteElo "2006"]
[BlackElo "1938"]
[Annotator "NA"]
[PlyCount "89"]
[EventDate "2019.09.07"]
[EventType "team-tourn"]
[EventCountry "POL"]
[SourceTitle "playchess.com"]
[Source "ChessBase"]
[SourceQuality "1"]
[TimeControl "40/5400+30:1800+30"]

1. e4 {[%emt 0:00:00]} c5 {[%emt 0:00:00]} 2. Nf3 {[%emt 0:00:00]} e6 {[%emt 0:00:00]} 3. c3 {[%emt 0:00:00]} Nf6 {[%emt 0:00:18]} 4. e5 {[%emt 0:00:11]} Nd5 {[%emt 0:00:29]} 5. d4 {[%emt 0:00:14]} cxd4 {[%emt 0:00:36]} 6. cxd4 {[%emt 0:00:09]} Nc6 {[%emt 0:00:18]} 7. Nc3 {[%emt 0:06:19]} Nxc3 {[%emt 0:01:28]} 8. bxc3 {[%emt 0:00:06]} d6 {[%emt 0:02:43]} 9. exd6 {[%emt 0:02:28]} Qxd6 {[%emt 0:03:51]} 10. Bd3 {[%emt 0:04:03]} Be7 {[%emt 0:03:32]} 11. O-O {[%emt 0:01:48]} O-O {[%emt 0:03:10]} 12. Qe2 {[%emt 0:03:11]} Bd7 {[%emt 0:11:13]} 13. Re1 {[%emt 0:09:01]} Rfe8 {[%emt 0:06:10]} 14. Bg5 {[%emt 0:07:43]} h6 {[%emt 0:05:59]} 15. Bxe7 {[%emt 0:03:04]} Rxe7 {[%emt 0:04:31]} 16. Rad1 {[%emt 0:05:33]} Qf4 {[%emt 0:07:14]} 17. Bc2 {[%emt 0:11:07]} Rc8 {[%emt 0:06:45]} 18. Qd3 {[%emt 0:06:51]} g6 {[%emt 0:09:11]} 19. h4 {[%emt 0:18:54]} Qc7 {[%emt 0:13:27]} 20. Qd2 {[%emt 0:08:32]} Kg7 {[%emt 0:01:19]} 21. c4 {[%emt 0:05:00]} Na5 {[%emt 0:02:45]} 22. c5 {[%emt 0:00:30]} Bc6 {[%emt 0:04:52]} 23. Ne5 {[%emt 0:01:04]} Bd5 {[%emt 0:01:55]} 24. h5 {[%emt 0:01:56]} Nc4 {[%emt 0:03:53]} 25. Nxc4 {[%emt 0:00:18]} Bxc4 {[%emt 0:00:03]} 26. hxg6 {[%emt 0:00:11]} f5 {[%emt 0:02:35]} 27. Qe3 {[%emt 0:02:32]} Kxg6 {[%emt 0:02:33]} 28. Bxf5+ {[%emt 0:01:44]} Kf7 {[%emt 0:01:05]} 29. Bb1 {[%emt 0:01:14]} Rg8 {[%emt 0:00:54]} 30. Qxh6 {[%emt 0:00:36]} Ke8 {[%emt 0:01:09]} 31. Qh5+ {[%emt 0:00:07]} Kd8 {[%emt 0:00:14]} 32. Qe5 {[%emt 0:00:17]} Rxg2+ {[%emt 0:01:10]} 33. Kxg2 {[%emt 0:00:15]} Rg7+ {[%emt 0:00:14]} 34. Kf3 {[%emt 0:01:08]} Bd5+ {[%emt 0:00:44]} 35. Be4 {[%emt 0:00:38]} Rf7+ {[%emt 0:00:33]} 36. Ke3 {[%emt 0:00:33]} Qa5 {[%emt 0:00:29]} 37. Bxd5 {[%emt 0:00:37]} Qc3+ {[%emt 0:00:21]} 38. Ke2 {[%emt 0:00:27]} Qb2+ {[%emt 0:00:42]} 39. Rd2 {[%emt 0:00:17]} Qb5+ {[%emt 0:00:13]} 40. Kd1 {[%emt 0:00:00]} Qb1+ {[%emt 0:00:00]} 41. Ke2 {[%emt 0:01:06]} Qb5+ {[%emt 0:00:59]} 42. Ke3 {[%emt 0:05:38]} exd5 {[%emt 0:03:30]} 43. Qxd5+ {[%emt 0:03:56]} Ke8 {[%emt 0:00:43]} 44. f3 {[%emt 0:01:09]} Rh7 {[%emt 0:10:55]} 45. Qg8+ {[%emt 0:00:13] Rh8 Qg6+} 1-0

[Event "POL-chT 2 Liga 2019"]
[Site "Poronin"]
[Date "2019.09.13"]
[Round "7.19"]
[White "Bobula, Mateusz"]
[Black "Pakleza, Zbigniew"]
[Result "0-1"]
[ECO "A40"]
[WhiteElo "2326"]
[BlackElo "2491"]
[Annotator "ChessBase"]
[PlyCount "114"]
[EventDate "2019.09.07"]
[EventType "team-tourn"]
[EventCountry "POL"]
[SourceTitle "playchess.com"]
[Source "ChessBase"]
[SourceQuality "1"]
[TimeControl "40/5400+30:1800+30"]

1. d4 {[%emt 0:00:00]} g6 {[%emt 0:00:00]} 2. Nf3 {[%emt 0:00:18]} Bg7 {[%emt 0:00:00]} 3. g3 {[%emt 0:00:43]} c5 {[%emt 0:00:00]} 4. c3 {[%emt 0:01:07]} Qb6 {[%emt 0:07:27]} 5. dxc5 {[%emt 0:04:21]} Qxc5 {[%emt 0:00:05]} 6. Bg2 {[%emt 0:00:28]} Nf6 {[%emt 0:00:09]} 7. O-O {[%emt 0:00:18]} O-O {[%emt 0:01:13]} 8. Nbd2 {[%emt 0:00:43]} Qc7 {[%emt 0:13:27]} 9. e4 {[%emt 0:14:45]} Nc6 {[%emt 0:02:49]} 10. Qe2 {[%emt 0:01:49]} d6 {[%emt 0:00:29]} 11. b3 {[%emt 0:04:44]} d5 {[%emt 0:07:40]} 12. Bb2 {[%emt 0:01:23]} dxe4 {[%emt 0:07:29]} 13. Nxe4 {[%emt 0:00:15]} Nxe4 {[%emt 0:00:15]} 14. Qxe4 {[%emt 0:00:06]} Bf5 {[%emt 0:00:26]} 15. Qa4 {[%emt 0:09:14]} Rab8 {[%emt 0:07:47]} 16. Rfe1 {[%emt 0:04:49]} b5 {[%emt 0:02:11]} 17. Qh4 {[%emt 0:01:08]} Rfd8 {[%emt 0:06:01]} 18. Rac1 {[%emt 0:01:49]} h5 {[%emt 0:10:12]} 19. Qg5 {[%emt 0:02:43]} Bf6 {[%emt 0:07:59]} 20. Qh6 {[%emt 0:00:56]} Bg7 {[%emt 0:00:17]} 21. Qe3 {[%emt 0:01:42]} Rd3 {[%emt 0:10:46]} 22. Qc5 {[%emt 0:03:02]} Qb6 {[%emt 0:01:43]} 23. Qxb6 {[%emt 0:07:33]} Rxb6 {[%emt 0:00:01]} 24. Nd4 {[%emt 0:03:31]} Nxd4 {[%emt 0:01:49]} 25. cxd4 {[%emt 0:00:05]} Rd2 {[%emt 0:01:04]} 26. Bc3 {[%emt 0:01:14]} Rxa2 {[%emt 0:00:02]} 27. Rxe7 {[%emt 0:00:49]} b4 {[%emt 0:00:27]} 28. Be1 {[%emt 0:00:45]} Bxd4 {[%emt 0:01:06]} 29. Bd5 {[%emt 0:00:35]} Be6 {[%emt 0:02:54]} 30. Bxe6 {[%emt 0:06:12]} Rxe6 {[%emt 0:00:01]} 31. Rc8+ {[%emt 0:00:19]} Kg7 {[%emt 0:00:49]} 32. Rxe6 {[%emt 0:02:56]} fxe6 {[%emt 0:00:01]} 33. Bxb4 {[%emt 0:00:13]} Bxf2+ {[%emt 0:00:09]} 34. Kf1 {[%emt 0:01:37]} Bd4 {[%emt 0:01:14]} 35. Bc3 {[%emt 0:01:01]} Bxc3 {[%emt 0:00:11]} 36. Rxc3 {[%emt 0:00:02]} Rxh2 {[%emt 0:02:27]} 37. Rc7+ {[%emt 0:00:01]} Kf6 {[%emt 0:00:05]} 38. Rxa7 {[%emt 0:00:03]} Rb2 {[%emt 0:00:52]} 39. Rb7 {[%emt 0:00:05]} Kf5 {[%emt 0:00:17]} 40. Rb4 {[%emt 0:00:00]} e5 {[%emt 0:00:00]} 41. Kg1 {[%emt 0:00:44]} e4 {[%emt 0:01:37]} 42. Kf1 {[%emt 0:00:01]} g5 {[%emt 0:02:43]} 43. Kg1 {[%emt 0:00:10]} Kg4 {[%emt 0:01:36]} 44. Rxe4+ {[%emt 0:00:01]} Kxg3 {[%emt 0:00:05]} 45. Re3+ {[%emt 0:00:06]} Kh4 {[%emt 0:00:27]} 46. Rc3 {[%emt 0:00:39]} g4 {[%emt 0:00:07]} 47. Rd3 {[%emt 0:00:09]} g3 {[%emt 0:00:10]} 48. b4 {[%emt 0:00:09]} Kh3 {[%emt 0:00:15]} 49. Rd1 {[%emt 0:00:03]} h4 {[%emt 0:00:09]} 50. b5 {[%emt 0:00:04]} Rxb5 {[%emt 0:00:04]} 51. Ra1 {[%emt 0:00:03]} Rb3 {[%emt 0:00:34]} 52. Rc1 {[%emt 0:00:07]} Kg4 {[%emt 0:00:29]} 53. Ra1 {[%emt 0:00:03]} Rb4 {[%emt 0:01:38]} 54. Rc1 {[%emt 0:00:03]} h3 {[%emt 0:00:04]} 55. Ra1 {[%emt 0:00:03]} h2+ {[%emt 0:00:20]} 56. Kg2 {[%emt 0:00:14]} Rb2+ {[%emt 0:00:04]} 57. Kh1 {[%emt 0:00:03]} Kh3 {[%emt 0:00:05]} 0-1

[Event "POL-chT 2 Liga 2019"]
[Site "Poronin"]
[Date "2019.09.13"]
[Round "7.20"]
[White "Jakubiec, Artur"]
[Black "Kyc, Jerzy"]
[Result "1/2-1/2"]
[ECO "B22"]
[WhiteElo "2472"]
[BlackElo "2309"]
[Annotator "ChessBase"]
[PlyCount "89"]
[EventDate "2019.09.07"]
[EventType "team-tourn"]
[EventCountry "POL"]
[SourceTitle "playchess.com"]
[Source "ChessBase"]
[SourceQuality "1"]
[TimeControl "40/5400+30:1800+30"]

1. e4 {[%emt 0:00:00]} c5 {[%emt 0:00:00]} 2. c3 {[%emt 0:02:59]} Nf6 {[%emt 0:00:00]} 3. e5 {[%emt 0:00:23]} Nd5 {[%emt 0:00:00]} 4. Nf3 {[%emt 0:00:10]} Nc6 {[%emt 0:00:00]} 5. g3 {[%emt 0:01:42]} d6 {[%emt 0:00:51]} 6. exd6 {[%emt 0:00:07]} exd6 {[%emt 0:00:25]} 7. Bg2 {[%emt 0:01:47]} Be7 {[%emt 0:00:04]} 8. O-O {[%emt 0:00:32]} O-O {[%emt 0:00:19]} 9. d4 {[%emt 0:01:00]} Bg4 {[%emt 0:01:51]} 10. h3 {[%emt 0:05:58]} Bh5 {[%emt 0:01:38]} 11. Na3 {[%emt 0:04:58]} Nb6 {[%emt 0:02:51]} 12. Nc2 {[%emt 0:04:26]} d5 {[%emt 0:05:21]} 13. dxc5 {[%emt 0:04:53]} Bxc5 {[%emt 0:10:17]} 14. Be3 {[%emt 0:00:09]} Bxe3 {[%emt 0:02:39]} 15. Nxe3 {[%emt 0:03:15]} Re8 {[%emt 0:00:54]} 16. Qb3 {[%emt 0:05:14]} Bg6 {[%emt 0:02:40]} 17. a4 {[%emt 0:12:42]} Rb8 {[%emt 0:13:07]} 18. Rfd1 {[%emt 0:04:03]} Be4 {[%emt 0:19:48]} 19. a5 {[%emt 0:05:19]} Nd7 {[%emt 0:00:30]} 20. Nxd5 {[%emt 0:03:40]} Nxa5 {[%emt 0:00:51]} 21. Qa3 {[%emt 0:06:36]} Nc6 {[%emt 0:04:02]} 22. c4 {[%emt 0:02:00]} a5 {[%emt 0:02:10]} 23. Qc3 {[%emt 0:07:12]} Nc5 {[%emt 0:02:13]} 24. Nd4 {[%emt 0:00:08]} Bxg2 {[%emt 0:00:37]} 25. Kxg2 {[%emt 0:00:01]} Nxd4 {[%emt 0:01:42]} 26. Rxd4 {[%emt 0:00:51]} Ne6 {[%emt 0:02:12]} 27. Re4 {[%emt 0:01:08]} b6 {[%emt 0:02:59]} 28. Rae1 {[%emt 0:01:18]} Qd7 {[%emt 0:05:10]} 29. Rg4 {[%emt 0:05:11]} Kh8 {[%emt 0:01:55]} 30. Nf6 {[%emt 0:01:30]} Qb7+ {[%emt 0:00:43]} 31. Kh2 {[%emt 0:01:00]} Red8 {[%emt 0:01:14]} 32. Rh4 {[%emt 0:03:33]} Nf8 {[%emt 0:02:48]} 33. Nh5 {[%emt 0:02:54]} f6 34. Rhe4 {[%emt 0:00:49]} Qc6 {[%emt 0:08:27]} 35. Re7 {[%emt 0:04:06]} Qc5 {[%emt 0:00:53]} 36. Qf3 {[%emt 0:00:10]} Rd7 {[%emt 0:00:39]} 37. R7e4 {[%emt 0:03:32]} Rbd8 {[%emt 0:01:05]} 38. Nf4 {[%emt 0:00:59]} Rd2 {[%emt 0:03:21]} 39. R1e2 {[%emt 0:00:07]} b5 {[%emt 0:00:47]} 40. Ne6 {[%emt 0:00:00]} Nxe6 {[%emt 0:00:00]} 41. Rxe6 {[%emt 0:04:35]} Rxe2 {[%emt 0:00:58]} 42. Qxe2 {[%emt 0:00:39]} Qxc4 {[%emt 0:00:10]} 43. Re8+ {[%emt 0:01:09]} Rxe8 {[%emt 0:00:02]} 44. Qxe8+ {[%emt 0:00:07]} Qg8 {[%emt 0:00:03]} 45. Qxb5 {[%emt 0:00:33]} 1/2-1/2

[Event "POL-chT 2 Liga 2019"]
[Site "Poronin"]
[Date "2019.09.13"]
[Round "7.21"]
[White "Gesicki, Jacek"]
[Black "Tymrakiewicz, Rafal"]
[Result "1-0"]
[ECO "B14"]
[WhiteElo "2234"]
[BlackElo "2257"]
[Annotator "NA"]
[PlyCount "176"]
[EventDate "2019.09.07"]
[EventType "team-tourn"]
[EventCountry "POL"]
[SourceTitle "playchess.com"]
[Source "ChessBase"]
[SourceQuality "1"]
[TimeControl "40/5400+30:1800+30"]

1. e4 {[%emt 0:00:00]} c6 {[%emt 0:02:12]} 2. d4 {[%emt 0:00:55]} d5 {[%emt 0:00:08]} 3. exd5 {[%emt 0:04:09]} cxd5 {[%emt 0:00:02]} 4. c4 {[%emt 0:00:06]} Nf6 {[%emt 0:00:05]} 5. Nc3 {[%emt 0:00:09]} g6 {[%emt 0:00:04]} 6. cxd5 {[%emt 0:06:44]} Bg7 {[%emt 0:01:08]} 7. Bb5+ {[%emt 0:02:04]} Bd7 {[%emt 0:14:22]} 8. Bc4 {[%emt 0:02:40]} O-O {[%emt 0:02:13]} 9. Nge2 {[%emt 0:01:57]} b5 {[%emt 0:12:33]} 10. Bb3 {[%emt 0:19:55]} a6 {[%emt 0:05:09]} 11. O-O {[%emt 0:00:59]} Bc8 {[%emt 0:02:42]} 12. Bf4 {[%emt 0:30:46]} Bb7 {[%emt 0:05:15]} 13. Rc1 {[%emt 0:06:04]} Re8 {[%emt 0:07:27]} 14. a3 {[%emt 0:02:51]} Qb6 {[%emt 0:07:20]} 15. Qd3 {[%emt 0:04:29]} Nbd7 {[%emt 0:04:34]} 16. Rfd1 {[%emt 0:00:10]} Rac8 {[%emt 0:01:04]} 17. Ng3 {[%emt 0:00:19]} Red8 {[%emt 0:07:53]} 18. h3 {[%emt 0:01:30]} Qa7 {[%emt 0:03:28]} 19. d6 {[%emt 0:03:55]} exd6 {[%emt 0:11:53]} 20. Bxd6 {[%emt 0:00:04]} Nb6 {[%emt 0:01:35]} 21. Be5 {[%emt 0:04:52]} Nc4 {[%emt 0:00:26]} 22. Bxc4 {[%emt 0:00:22]} Rxc4 {[%emt 0:02:43]} 23. Nce2 {[%emt 0:00:03]} Bd5 {[%emt 0:04:17]} 24. Rxc4 {[%emt 0:01:30]} bxc4 {[%emt 0:00:21]} 25. Qd2 {[%emt 0:00:22]} Qb7 {[%emt 0:01:25]} 26. f3 {[%emt 0:00:05]} Be6 {[%emt 0:00:32]} 27. Nc3 {[%emt 0:00:15]} Ne4 {[%emt 0:01:12]} 28. Qe1 {[%emt 0:03:34]} Nxg3 {[%emt 0:00:36]} 29. Qxg3 {[%emt 0:00:25]} f6 {[%emt 0:00:47]} 30. Bc7 {[%emt 0:02:27]} Rd7 {[%emt 0:00:27]} 31. Ba5 {[%emt 0:00:02]} f5 {[%emt 0:00:28]} 32. Qf2 {[%emt 0:00:13]} Bf7 {[%emt 0:00:51]} 33. Bb4 {[%emt 0:00:18]} h6 {[%emt 0:00:18]} 34. Bc5 {[%emt 0:00:37]} Qc6 {[%emt 0:00:32]} 35. Re1 {[%emt 0:00:20]} Bf6 {[%emt 0:00:11]} 36. Kh1 {[%emt 0:00:25]} Qc7 {[%emt 0:00:14]} 37. Qe3 {[%emt 0:00:23]} Kg7 {[%emt 0:00:27]} 38. Ne2 {[%emt 0:01:29]} Qb8 {[%emt 0:00:54]} 39. Qc1 {[%emt 0:00:56]} Bh4 {[%emt 0:00:16]} 40. Rd1 {[%emt 0:00:00]} Bg5 {[%emt 0:00:00]} 41. f4 {[%emt 0:10:16]} Bf6 {[%emt 0:01:15]} 42. Nc3 {[%emt 0:00:19]} Qb7 {[%emt 0:01:19]} 43. Qd2 {[%emt 0:00:50]} Qc6 {[%emt 0:00:12]} 44. Qf2 {[%emt 0:02:10]} Kh7 {[%emt 0:05:15]} 45. Re1 {[%emt 0:03:17]} Qb7 {[%emt 0:02:22]} 46. Rd1 {[%emt 0:02:44]} Rd8 {[%emt 0:04:41]} 47. Rd2 {[%emt 0:01:09]} Rd7 {[%emt 0:06:30]} 48. Qe2 {[%emt 0:03:30]} Qc7 {[%emt 0:06:37]} 49. Qf3 {[%emt 0:02:28]} Rd8 {[%emt 0:00:19]} 50. Re2 {[%emt 0:01:38]} Kg7 {[%emt 0:01:08]} 51. Qf2 {[%emt 0:01:07]} Qd7 {[%emt 0:01:02]} 52. d5 {[%emt 0:02:01]} Bxd5 {[%emt 0:04:02]} 53. Bb6 {[%emt 0:00:14]} Rb8 {[%emt 0:00:37]} 54. Rd2 {[%emt 0:00:15]} Bxc3 {[%emt 0:01:21]} 55. bxc3 {[%emt 0:00:03]} Qc6 {[%emt 0:01:07]} 56. Bd4+ {[%emt 0:02:32]} Kh7 {[%emt 0:00:21]} 57. Qh4 {[%emt 0:00:20]} Re8 {[%emt 0:00:44]} 58. Be5 {[%emt 0:01:01]} Qe6 {[%emt 0:00:32]} 59. Qf2 {[%emt 0:01:19]} Rd8 {[%emt 0:00:55]} 60. Qc5 {[%emt 0:00:30]} g5 {[%emt 0:00:23]} 61. Kh2 {[%emt 0:01:31]} g4 {[%emt 0:00:57]} 62. hxg4 {[%emt 0:00:30]} fxg4 {[%emt 0:00:01]} 63. Qf2 {[%emt 0:01:44]} Rd7 {[%emt 0:00:56]} 64. Qh4 {[%emt 0:00:17]} Qf7 {[%emt 0:00:38]} 65. Rb2 {[%emt 0:00:48]} g3+ {[%emt 0:00:26]} 66. Qxg3 {[%emt 0:00:36]} Qh5+ {[%emt 0:00:30]} 67. Qh3 {[%emt 0:00:02]} Qxh3+ {[%emt 0:00:08]} 68. Kxh3 {[%emt 0:00:14]} Be6+ {[%emt 0:00:52]} 69. g4 {[%emt 0:00:06]} Rd3+ {[%emt 0:00:28]} 70. Kh4 {[%emt 0:00:04]} Bd7 {[%emt 0:00:40]} 71. Rb8 {[%emt 0:00:26]} Kg6 {[%emt 0:00:33]} 72. Rb6+ {[%emt 0:00:28]} Kh7 {[%emt 0:00:20]} 73. Rxa6 {[%emt 0:00:07]} h5 {[%emt 0:00:28]} 74. Kxh5 {[%emt 0:00:47]} Be8+ {[%emt 0:00:28]} 75. Kg5 {[%emt 0:00:23]} Rd5 {[%emt 0:00:38]} 76. Ra8 {[%emt 0:00:38]} Kg8 {[%emt 0:00:36]} 77. Rxe8+ {[%emt 0:00:08]} Kf7 {[%emt 0:00:01]} 78. Rc8 {[%emt 0:00:10]} Ra5 {[%emt 0:00:16]} 79. Rxc4 {[%emt 0:00:10]} Rxa3 {[%emt 0:00:03]} 80. Kf5 {[%emt 0:00:06]} Ra5 {[%emt 0:00:23]} 81. g5 {[%emt 0:00:10]} Ra8 {[%emt 0:00:22]} 82. Rc7+ {[%emt 0:00:27]} Kg8 83. Rg7+ {[%emt 0:00:13]} Kf8 {[%emt 0:00:13]} 84. Rh7 {[%emt 0:00:15]} Ra2 {[%emt 0:02:16]} 85. g6 {[%emt 0:00:27]} Rg2 {[%emt 0:00:28]} 86. Rh8+ {[%emt 0:00:28]} Ke7 {[%emt 0:00:01]} 87. g7 {[%emt 0:00:13]} Kd7 {[%emt 0:01:23]} 88. g8=Q {[%emt 0:00:30]} Ke7 1-0